fUSD/lending_fUSD_20260129
["ID","MTS","AMOUNT","RATE_DAILY","PERIOD"]
[403907401,1769656233703,-348.6681,0.00017586,2]
[403907402,1769656233712,-152.32991398,0.00017589,2]
[403907403,1769656233721,-290.39862941,0.00017594,2]
[403907404,1769656233730,-243.0,0.00017622,2]
[403907405,1769656233739,-243.0,0.00017636,2]
[403907406,1769656233748,-621.08977262,0.0001764,2]
[403907407,1769656233761,-395.22120881,0.0001764,2]
[403907408,1769656233770,-243.0,0.00017646,2]
[403907409,1769656233779,-292.81579119,0.00017649,2]
[403907410,1769656233816,-8.32758751,0.00017649,2]
[403907411,1769656233826,-243.0,0.00017653,2]
[403907412,1769656233835,-179.512,0.00017662,2]
[403907413,1769656233844,-406.0,0.00017663,2]
[403907414,1769656233853,-1638.804,0.00017674,2]
[403907415,1769656233862,-166.66,0.00017773,2]
[403907416,1769656233871,-7914.7601545,0.000178,2]
[403907417,1769656233880,-500.0,0.00017808,2]
[403907418,1769656233889,-7914.76015449,0.00017811,2]
[403907419,1769656233899,-521.97633,0.0001782,2]
[403907420,1769656233908,-7914.76015449,0.00017822,2]
[403907421,1769656233917,-6979.33720255,0.00017833,2]
[403907422,1769656233928,-935.42295194,0.00017833,2]
[403907423,1769656233937,-243.0,0.00017838,2]
[403907424,1769656233946,-5010.52036713,0.00017844,2]
[403907425,1769656233958,-2904.23978736,0.00017844,2]
[403907426,1769656233967,-25.47324283,0.00017856,2]
[403907427,1769656233978,-1247.39962148,0.00017856,2]
[403907428,1769656234002,-6641.88729018,0.00017856,2]
[403907429,1769656234010,-500.0,0.00017863,2]
[403907430,1769656234019,-7914.76015449,0.00017867,2]
[403907431,1769656234028,-7914.76015449,0.00017878,2]
[403907432,1769656234038,-7914.76015449,0.00017889,2]
[403907433,1769656234047,-206.75298041,0.00017898,2]
[403907434,1769656234055,-373.02966674,0.00017898,2]
[403907435,1769656234066,-4649.59548288,0.00017899,2]
[403907436,1769656234075,-4649.59548285,0.00017899,2]
[403907437,1769656234084,-4649.59548285,0.00017899,2]
[403907438,1769656234093,-4649.59548285,0.00017899,2]
[403907439,1769656234102,-4649.59548285,0.00017899,2]
[403907440,1769656234111,-4649.59548285,0.000179,2]
[403907441,1769656234120,-4649.59548285,0.000179,2]
[403907442,1769656234130,-4649.59548285,0.000179,2]
[403907443,1769656234139,-4649.59548285,0.000179,2]
[403907444,1769656234148,-25000.0,0.000179,3]
[403907445,1769656234157,-159.81572425,0.000179,2]
[403907446,1769656234166,-4649.59548285,0.000179,2]
[403907447,1769656234175,-2861.09878595,0.000179,2]
[403907448,1769656234187,-5053.66136854,0.000179,2]
[403907449,1769656234196,-3734.65181949,0.000179,2]
[403907450,1769656234206,-1686.79317976,0.000179,2]
[403907456,1769656238105,-21052.62196008,0.000179,2]
[403907457,1769656238114,-171.99873803,0.000179,3]
[403907458,1769656238124,-223.33261478,0.000179,2]
[403907459,1769656238133,-236.78161332,0.000179,2]
[403907460,1769656238142,-1233.5767926,0.000179,2]
[403907461,1769656238151,-161.38883435,0.000179,2]
[403907462,1769656238160,-257.38124903,0.000179,2]
[403907463,1769656238170,-169.73741276,0.000179,2]
[403907464,1769656238178,-219.55029181,0.00017918,2]
[403907466,1769656238223,-280.44970819,0.00017918,2]
[403907467,1769656238232,-521.97634,0.0001792,2]
[403907468,1769656238240,-500.0,0.00017972,2]
[403907469,1769656238250,-1680.0,0.00017982,2]
[403907471,1769656238259,-934.81727623,0.00017982,2]
[403907472,1769656238268,-151.94,0.00017989,2]
[403907474,1769656238277,-151.94,0.00017989,2]
[403907476,1769656238286,-151.94,0.0001799,2]
[403907477,1769656238295,-151.94,0.0001799,2]
[403907478,1769656238306,-151.94,0.0001799,2]
[403907479,1769656238316,-151.0,0.00017997,2]
[403907480,1769656238324,-9553.6238226,0.00017999,2]
[403907481,1769656238333,-155.268,0.00017999,2]
[403907482,1769656238343,-28262.4195274,0.00017999,2]
[403907483,1769656238352,-143654.3914621,0.00017999,2]
[403907484,1769656238361,-308.31742635,0.00017999,2]
[403907485,1769656238370,-300.0,0.00017999,2]
[403907486,1769656238381,-3155.2571692,0.00017999,2]
[403907487,1769656238390,-4889.0,0.00018,2]
[403907488,1769656238400,-854796.68177493,0.00018,2]
[403907489,1769656238408,-4183876.75996077,0.00018,2]
[403907490,1769656238536,-479.45614008,0.00018,2]
[403907491,1769656238562,-434.63196269,0.00018,2]
[403907492,1769656238573,-265.13547986,0.00018,2]
[403907493,1769656238584,-1273.22322907,0.00018,2]
[403907494,1769656239995,-66119.99829531,0.00018,2]
[403907495,1769656240007,-1517.46946338,0.00018,2]
[403907496,1769656240104,-1559.11139093,0.00018,2]
[403907497,1769656240115,-1059.80161734,0.00018,2]
[403907498,1769656240163,-379.38355626,0.00018,2]
[403907499,1769656240178,-878.57,0.00018,2]
[403907500,1769656240188,-520.08863341,0.00018,2]
[403907501,1769656240199,-10176.88062313,0.00018,2]
[403907524,1769656243315,-246.4963875,0.00017989,2]
[403907525,1769656243330,-7983.359087,0.00017989,2]
[403907526,1769656243339,-4394.68701212,0.00018,2]
[403907527,1769656243351,-49998.66071273,0.00018,2]
[403907528,1769656243359,-151.61356357,0.00018,2]
[403907529,1769656243368,-228.99217333,0.00018,2]
[403907530,1769656243377,-200.0,0.00018,2]
[403907531,1769656243387,-151.5011,0.00018,2]
[403907532,1769656243396,-151.0,0.00018,2]
[403907533,1769656243406,-547.0,0.00018,2]
[403907534,1769656243415,-503.0,0.00018,2]
[403907535,1769656243424,-509.99997,0.00018,2]
[403907536,1769656243434,-487.0,0.00018,2]
[403907537,1769656243443,-487.0,0.00018,2]
[403907538,1769656243452,-487.0,0.00018,2]
[403907539,1769656243461,-487.0,0.00018,2]
[403907540,1769656243470,-487.0,0.00018,2]
[403907541,1769656243480,-487.0,0.00018,2]
[403907542,1769656243488,-487.0,0.00018,2]
[403907543,1769656243498,-487.0,0.00018,2]
[403907544,1769656243507,-487.0,0.00018,2]
[403907545,1769656243516,-487.0,0.00018,2]
[403907546,1769656243525,-622.08,0.00018,2]
[403907547,1769656243534,-219.0,0.00018003,2]
[403907548,1769656243543,-195.0,0.00018009,2]
[403907549,1769656243552,-600.0,0.00018009,2]
[403907550,1769656243561,-250.0,0.00018009,2]
[403907551,1769656243570,-2000.0,0.00018016,2]
[403907552,1769656243579,-521.97634,0.0001802,2]
[403907553,1769656243592,-500.0,0.00018027,2]
[403907554,1769656243603,-219.0,0.00018057,2]
[403907555,1769656243612,-500.0,0.00018082,2]
[403907556,1769656243621,-1779.11882968,0.000181,2]
[403907557,1769656243630,-219.0,0.00018119,2]
[403907558,1769656243640,-521.97634,0.0001812,2]
[403907559,1769656243650,-500.0,0.00018137,2]
[403907560,1769656243659,-200.0,0.0001818,2]
[403907561,1769656243670,-254.70089507,0.00018192,2]
[403907562,1769656243680,-521.97634,0.0001822,2]
[403907563,1769656243689,-1323.49,0.0001827,2]
[403907564,1769656243698,-911.93,0.000183,2]
[403907565,1769656243707,-1000.0,0.00018306,2]
[403907566,1769656243716,-219.0,0.00018306,2]
[403907567,1769656243726,-521.97634,0.0001832,2]
[403907568,1769656243735,-609.03,0.00018334,2]
[403907569,1769656243744,-169.49,0.00018362,2]
[403907570,1769656243754,-200.0,0.00018362,2]
[403907571,1769656243763,-421.0,0.00018375,2]
[403907572,1769656243773,-540.0,0.00018395,2]
[403907573,1769656243782,-421.0,0.00018518,2]
[403907574,1769656243791,-219.0,0.00018541,2]
[403907575,1769656243801,-200.0,0.00018545,2]
[403907576,1769656243810,-272.71487804,0.00018564,2]
[403907577,1769656243819,-540.0,0.00018745,2]
[403907578,1769656243829,-406.0,0.00018751,2]
[403907579,1769656243838,-540.0,0.00018816,2]
[403907580,1769656243849,-219.0,0.00018859,2]
[403907581,1769656243858,-1000.0,0.00018886,2]
[403907582,1769656243867,-500.80202623,0.000189,3]
[403907583,1769656243877,-540.0,0.00018905,2]
[403907584,1769656243887,-219.0,0.00018963,2]
[403907585,1769656243896,-219.0,0.00018972,2]
[403907586,1769656243905,-297.06153925,0.00019,2]
[403907587,1769656243914,-219.0,0.0001901,2]
[403907588,1769656243925,-206.89,0.0001901,2]
[403907589,1769656243935,-540.0,0.00019021,2]
[403907590,1769656243944,-465.7068218,0.00019178,2]
[403907591,1769656243953,-170.6,0.00019187,2]
[403907592,1769656243963,-169.49,0.00019319,2]
[403907593,1769656243971,-529.0,0.00019752,2]
[403907594,1769656243981,-155.0,0.00019799,2]
[403907595,1769656243990,-311.0,0.000198,2]
[403907596,1769656243999,-168.9999,0.0002,2]
[403907597,1769656244008,-7503.739256,0.0002,2]
[403907598,1769656244019,-4000.0,0.0002,2]
[403907599,1769656244028,-187.88,0.0002,2]
[403907600,1769656244037,-152.0,0.00020063,3]
[403907601,1769656244047,-1836.32897,0.00020274,2]
[403907602,1769656244059,-169.49,0.00020277,2]
[403907603,1769656244069,-2131.7016135,0.0002029,2]
[403907604,1769656244078,-6306.1981953,0.0002029,2]
[403907605,1769656244087,-32053.6273729,0.0002029,2]
[403907606,1769656244096,-704.0330374,0.0002029,2]
[403907607,1769656244104,-1323.49,0.000203,2]
[403907608,1769656244113,-170.6,0.00020466,2]
[403907609,1769656244123,-21527.68,0.00020548,2]
[403907610,1769656244132,-154.34,0.00020548,2]
[403907611,1769656244142,-1000.0,0.00020775,2]
[403907612,1769656244151,-409.7403771,0.00020784,2]
[403907613,1769656244160,-475.6469224,0.00020801,2]
[403907614,1769656244169,-1407.1030132,0.00020801,2]
[403907615,1769656244178,-7152.131009,0.00020801,2]
[403907616,1769656244186,-157.0910044,0.00020801,2]
[403907617,1769656244195,-258.14019843,0.00020918,2]
[403907618,1769656244204,-159.78448856,0.00020998,2]
[403907619,1769656244213,-42471.3424236,0.00021,2]
[403907620,1769656244261,-5637.10390803,0.00021,2]
[403907621,1769656244269,-158.0,0.00021,2]
[403907622,1769656244278,-151.0,0.00021,2]
[403907623,1769656244287,-251.0,0.00021068,2]
[403907624,1769656244297,-152.0,0.00021175,4]
[403907625,1769656244307,-162.0,0.00021354,120]
[403907626,1769656244318,-161.0,0.00021366,120]
[403907627,1769656244327,-160.0,0.00021366,120]
[403907628,1769656244336,-6381.01,0.0002137,2]
[403907629,1769656244349,-160.0,0.0002142,120]
[403907630,1769656244358,-161.0,0.0002142,120]
[403907631,1769656244367,-155.0,0.00021599,2]
[403907632,1769656244376,-192.0,0.00021739,120]
[403907633,1769656244386,-170.6,0.00021745,2]
[403907634,1769656244395,-500.0,0.00021917,10]
[403907635,1769656244404,-5000.0,0.00021918,2]
[403907636,1769656244413,-500.0,0.00021918,2]
[403907637,1769656244422,-252.33906113,0.00021918,2]
[403907638,1769656244432,-573.69503765,0.00021973,2]
[403907639,1769656244441,-500.46645144,0.00021973,2]
[403907640,1769656244450,-163.35589267,0.00021973,2]
[403907641,1769656244460,-503.16333224,0.00021973,2]
[403907642,1769656244469,-246.22142759,0.00021973,2]
[403907643,1769656244479,-500.65516553,0.00021973,2]
[403907644,1769656244488,-500.7073601,0.00021973,2]
[403907645,1769656244498,-501.78715231,0.00021973,2]
[403907646,1769656244507,-500.39813923,0.00021973,2]
[403907647,1769656244516,-500.25848478,0.00021973,2]
[403907648,1769656244526,-559.31461454,0.00021973,2]
[403907649,1769656244535,-161.35196553,0.00021973,2]
[403907650,1769656244544,-500.63471646,0.00021973,2]
[403907651,1769656244553,-160.44012882,0.00021973,2]
[403907652,1769656244562,-163.2453118,0.00021973,2]
[403907653,1769656244571,-500.29130502,0.00021973,2]
[403907654,1769656244580,-502.77726706,0.00021973,2]
[403907655,1769656244589,-336.22277346,0.00021973,2]
[403907656,1769656244599,-521.97403249,0.00021973,2]
[403907657,1769656244608,-500.0,0.00021973,2]
[403907658,1769656244617,-501.62510605,0.00021973,2]
[403907659,1769656244626,-501.09894885,0.00021973,2]
[403907660,1769656244635,-500.59832252,0.00021973,2]
[403907661,1769656244645,-501.79091741,0.00021973,2]
[403907662,1769656244654,-501.69742107,0.00021973,2]
[403907663,1769656244663,-473.07431395,0.00021973,2]
[403907664,1769656244672,-180.21180841,0.00021973,2]
[403907665,1769656244681,-160.19234849,0.00021973,2]
[403907666,1769656244690,-160.18887967,0.00021973,2]
[403907667,1769656244701,-160.19050507,0.00021973,2]
[403907668,1769656245043,-160.1889107,0.00021973,2]
[403907669,1769656245072,-500.25751023,0.00021973,2]
[403907670,1769656245082,-160.18986836,0.00021973,2]
[403907671,1769656245091,-160.17274007,0.00021973,2]
[403907672,1769656245102,-163.02204231,0.00021973,2]
[403907673,1769656245112,-151.01146595,0.00021973,2]
[403907674,1769656245122,-512.61898078,0.00021973,2]
[403907675,1769656245131,-501.1436516,0.00021973,2]
[403907676,1769656245141,-500.92283505,0.00021973,2]
[403907677,1769656245150,-500.54930986,0.00021973,2]
[403907678,1769656245159,-501.69991624,0.00021973,2]
[403907679,1769656245168,-501.2399337,0.00021973,2]
[403907680,1769656245179,-501.96423084,0.00021973,2]
[403907681,1769656245188,-500.39309902,0.00021973,2]
[403907682,1769656245198,-503.12593193,0.00021973,2]
[403907683,1769656245209,-160.18100172,0.00021973,2]
[403907684,1769656245218,-502.08848292,0.00021973,2]
[403907685,1769656245227,-500.0,0.00021973,2]
[403907686,1769656245238,-500.31419606,0.00021973,2]
[403907687,1769656245247,-160.19070691,0.00021973,2]
[403907688,1769656245256,-160.2483741,0.00021973,2]
[403907689,1769656245265,-501.53161801,0.00021973,2]
[403907690,1769656245274,-160.19070915,0.00021973,2]
[403907691,1769656245283,-500.0,0.00021973,2]
[403907692,1769656245292,-500.0,0.0002199,2]
[403907693,1769656245302,-162.0,0.00022,14]
[403907694,1769656245316,-500.0,0.00022,14]
[403907695,1769656245326,-825.58,0.00022,7]
[403907696,1769656245335,-724.31,0.00022,2]
[403907697,1769656245346,-500.0,0.00022028,2]
[403907698,1769656245358,-3459.78,0.0002206,2]
[403907699,1769656245367,-500.81857219,0.00022082,2]
[403907700,1769656245378,-202.50989277,0.00022198,2]
[403907701,1769656245387,-152.0,0.00022288,5]
[403907702,1769656245395,-1323.49,0.0002233,2]
[403907703,1769656245405,-161.0,0.00022435,120]
[403907704,1769656245414,-160.0,0.00022435,120]
[403907705,1769656245423,-160.0,0.00022491,120]
[403907706,1769656245434,-161.0,0.00022491,120]
[403907707,1769656245443,-1000.0,0.00022521,2]
[403907708,1769656245452,-200.0,0.00022596,2]
[403907709,1769656245461,-216.75260752,0.000226,2]
[403907710,1769656245471,-1000.0,0.00022663,2]
[403907711,1769656245480,-257.0,0.00022728,120]
[403907712,1769656245490,-171.0,0.00022728,120]
[403907713,1769656245499,-171.0,0.00022728,120]
[403907714,1769656245508,-200.0,0.00022729,2]
[403907715,1769656245517,-192.0,0.00022826,120]
[403907716,1769656245527,-1324.222,0.0002285,2]
[403907717,1769656245536,-1233.57679257,0.000229,2]
[403907718,1769656245545,-150.0,0.00022973,2]
[403907719,1769656245554,-407.39356264,0.00022994,120]
[403907720,1769656245563,-170.6,0.00023024,2]
[403907721,1769656245572,-1005.27313821,0.00023068,2]
[403907722,1769656245582,-152.0,0.000234,6]
[403907723,1769656245591,-154.6902511,0.000234,5]
[403907724,1769656245600,-150.40333038,0.00023521,2]
[403907725,1769656245610,-161.0,0.00023557,120]
[403907726,1769656245619,-160.0,0.00023557,120]
[403907727,1769656245628,-160.0,0.00023616,120]
[403907728,1769656245638,-161.0,0.00023616,120]
[403907729,1769656245647,-724.31,0.000237,2]
[403907730,1769656245656,-173.64,0.0002395,2]
[403907731,1769656245666,-192.0,0.00023968,120]
[403907732,1769656245676,-825.58,0.00024,7]
[403907733,1769656245685,-460.08437949,0.00024049,2]
[403907734,1769656245694,-1323.49,0.0002436,2]
[403907735,1769656245703,-1000.0,0.00024658,2]
[403907736,1769656245712,-325.2361923,0.000248,2]
[403907737,1769656245721,-164.09529735,0.00025,60]
[403907738,1769656245731,-150.0,0.00025,2]
[403907739,1769656245740,-155.0,0.00025199,2]
[403907740,1769656245752,-150.385,0.00025565,2]
[403907741,1769656245761,-1343.108,0.00025565,2]
[403907742,1769656245771,-1428.886,0.00025565,2]
[403907743,1769656245780,-3501.033,0.00025565,2]
[403907744,1769656245789,-162.152,0.00025565,2]
[403907745,1769656245798,-1277.531,0.00025565,2]
[403907746,1769656245807,-3046.0,0.00025662,2]
[403907747,1769656245816,-400.0,0.00027,120]
[403907748,1769656245826,-150.0,0.00027369,2]
[403907749,1769656245837,-750.0,0.00027397,20]
[403907750,1769656245849,-825.58,0.000274,7]
[403907751,1769656245858,-724.31,0.000274,2]
[403907752,1769656245868,-1233.57679257,0.000279,2]
[403907753,1769656245877,-500.0,0.00028,120]
[403907754,1769656245886,-969.46,0.00028246,2]
[403907755,1769656245895,-4726.4106222,0.000295,120]
[403907756,1769656245905,-4231.01574633,0.0003,30]
[403907757,1769656245915,-773.0,0.0003,120]
[403907758,1769656245923,-2000.0,0.0003,3]
[403907759,1769656245932,-58744.0,0.0003,2]
[403907760,1769656245941,-500.0,0.0003,120]
[403907761,1769656245950,-172.31,0.00030384,2]
[403907762,1769656245959,-26474.06695932,0.00030544,2]
[403907763,1769656245968,-236.78161331,0.00030544,2]
[403907764,1769656245977,-161.38883435,0.00030544,2]
[403907765,1769656245986,-257.38124901,0.00030544,2]
[403907766,1769656245995,-2980.72666491,0.0003121,2]
[403907767,1769656246004,-500.0,0.000314,120]
[403907768,1769656246013,-159.78448857,0.00031498,2]
[403907769,1769656246023,-500.0,0.00031562,2]
[403907770,1769656246032,-152.91,0.00031671,2]
[403907771,1769656246041,-150.0,0.000317,14]
[403907772,1769656246053,-967.70789765,0.00032,120]
[403907773,1769656246063,-500.0,0.00032,120]
[403907774,1769656246071,-724.31,0.000322,2]
[403907775,1769656246080,-825.58,0.000323,7]
[403907776,1769656246090,-155.0,0.00032398,2]
[403907777,1769656246099,-283.31985709,0.00032849,30]
[403907778,1769656246107,-150.0,0.00032877,2]
[403907779,1769656246117,-500.0,0.00032877,7]
[403907780,1769656246126,-226.46279766,0.00032877,7]
[403907781,1769656246135,-500.0,0.00032877,7]
[403907782,1769656246145,-500.0,0.00032877,7]
[403907783,1769656246154,-500.0,0.00032877,7]
[403907784,1769656246163,-500.0,0.00032877,7]
[403907785,1769656246172,-3041.69,0.000329,14]
[403907786,1769656246180,-1131.57,0.000329,14]
[403907787,1769656246188,-1273.89,0.000329,2]
[403907788,1769656246196,-1233.57679257,0.000329,2]
[403907789,1769656246204,-150.0,0.00032932,2]
[403907790,1769656246212,-150.0,0.00032987,2]
[403907791,1769656246220,-200.0,0.00033,120]
[403907792,1769656246228,-150.0,0.00033041,2]
[403907793,1769656246236,-150.0,0.00033096,2]
[403907794,1769656246244,-246.32178331,0.00033151,2]
[403907795,1769656246253,-244.28,0.000333,30]
[403907796,1769656246262,-180.06,0.00033314,2]
[403907797,1769656246271,-150.0,0.00033314,2]
[403907798,1769656246280,-1453.14,0.00033314,2]
[403907799,1769656246289,-150.0,0.00033314,2]
[403907800,1769656246298,-300.0,0.00033314,2]
[403907801,1769656246308,-150.0,0.00033314,2]
[403907802,1769656246319,-180.06,0.00033314,2]
[403907803,1769656246330,-150.0,0.00033314,2]
[403907804,1769656246341,-547.0,0.000335,16]
[403907805,1769656246351,-500.0,0.00034,120]
[403907806,1769656246360,-1273.89,0.00035,2]
[403907807,1769656246369,-214.0,0.00035,120]
[403907808,1769656246378,-156.17613815,0.0003533,7]
[403907809,1769656246389,-317.19036114,0.00035616,120]
[403907810,1769656246398,-160.53979886,0.00035616,2]
[403907811,1769656246406,-382.93,0.00035616,30]
[403907812,1769656246417,-3041.69,0.000357,14]
[403907813,1769656246426,-164.27,0.00036,120]
[403907815,1769656246435,-500.0,0.00036,120]
[403907817,1769656246445,-1131.57,0.000366,14]
[403907818,1769656246453,-825.58,0.000366,14]
[403907819,1769656246462,-724.31,0.000366,2]
[403907820,1769656246472,-151.0,0.00036885,14]
[403907821,1769656246481,-419.76745775,0.00036887,120]
[403907822,1769656246490,-16095.21967493,0.00036888,60]
[403907823,1769656246538,-355912.21513006,0.00036888,60]
[403907824,1769656247131,-3287.25616707,0.00036888,60]
[403907825,1769656247443,-1710.45204973,0.00036888,60]
[403907826,1769656247455,-111127.54964364,0.00036888,60]
[403907827,1769656262195,195.0,0.0001958,120]
[403907828,1769657136479,-151.0,0.00016065,2]
[403907829,1769657136499,-29.22382258,0.00016065,2]
[403907834,1769657233142,-1312.10743487,0.000162,5]
[403907921,1769657353080,-52597.88503028,0.00016,4]
[403907922,1769657368093,-13550.40111426,0.00016,4]
[403907923,1769657368114,-151.0,0.00016032,2]
[403907924,1769657368134,-292.46803323,0.00016152,2]
[403907925,1769657368154,-3796.94497653,0.000162,5]
[403907926,1769657378291,151.0,0.00016049,2]
[403907927,1769657386360,151.0,0.00016049,2]
[403907928,1769657403056,151.0,0.00016049,2]
[403907943,1769657432003,-150.00223955,0.00016216,2]
[403907945,1769657432013,-150.75162897,0.00016255,2]
[403907950,1769657432240,-32.64637194,0.00016255,2]
[403907951,1769657432249,-113.14334298,0.00016294,2]
[403907952,1769657432276,-1375.04513678,0.00016294,2]
[403907953,1769657432286,-1200.0,0.00016372,2]
[403907954,1769657432295,-500.37082769,0.00016373,2]
[403907955,1769657432305,-500.0,0.00016373,2]
[403907956,1769657432314,-501.47284446,0.00016373,2]
[403907957,1769657432324,-500.0,0.00016373,2]
[403907958,1769657432334,-500.0,0.00016373,2]
[403907960,1769657432343,-1000.0,0.00016599,2]
[403907962,1769657432352,-150.0,0.00016682,2]
[403907964,1769657432363,-2279.8,0.00016709,2]
[403907966,1769657432372,-200.0,0.0001677,2]
[403907968,1769657432381,-3416.91519993,0.00016853,2]
[403907970,1769657432391,-1000.0,0.00016921,2]
[403907972,1769657432400,-577.68136073,0.00016921,2]
[403907974,1769657432409,-504.96930507,0.00016921,2]
[403907976,1769657432419,-1002.24347503,0.00016932,2]
[403907978,1769657432427,-550.0,0.00016932,2]
[403907980,1769657432437,-1231.66119846,0.00016933,2]
[403907982,1769657432446,-3250.37338952,0.00016933,2]
[403907984,1769657432455,-5734.04393819,0.00016933,2]
[403907986,1769657432464,-8577.78680089,0.00016933,2]
[403907987,1769657432474,-11606.0472,0.00016933,2]
[403907988,1769657432483,-1000.0,0.00017222,2]
[403907989,1769657432492,-218.52836553,0.00017229,2]
[403907990,1769657432502,-175.0,0.00017308,2]
[403907991,1769657432511,-166.66,0.00017325,2]
[403907992,1769657432521,-175.0,0.00017415,2]
[403907993,1769657432530,-150.99,0.00017468,2]
[403907994,1769657432539,-9999.99,0.00017468,2]
[403907995,1769657432548,-1500.0,0.00017468,2]
[403907996,1769657432557,-175.0,0.00017473,2]
[403907997,1769657432567,-175.0,0.00017521,2]
[403907998,1769657432577,-250.0,0.000176,2]
[403907999,1769657432586,-175.0,0.00017621,2]
[403908000,1769657432596,-250.0,0.00017652,2]
[403908001,1769657432608,-1228.03820374,0.0001767,2]
[403908002,1769657432619,-201.01666488,0.00017677,2]
[403908003,1769657432629,-583.58192607,0.00017749,2]
[403908004,1769657432639,-1000.0,0.000178,2]
[403908005,1769657432648,-967.8372,0.000178,2]
[403908006,1769657432658,-1297.60771421,0.000178,2]
[403908007,1769657432671,-1297.60771417,0.00017814,2]
[403908008,1769657432681,-175.0,0.00017818,2]
[403908009,1769657432692,-175.0,0.00017821,2]
[403908010,1769657432702,-500.0,0.00017823,2]
[403908011,1769657432712,-1297.60771417,0.00017829,2]
[403908012,1769657432722,-2500.0,0.00017838,2]
[403908013,1769657432731,-250.0,0.00017838,2]
[403908014,1769657432742,-300.0,0.00017838,2]
[403908015,1769657432751,-1297.60771417,0.00017843,2]
[403908016,1769657432761,-1000.0,0.00017844,2]
[403908017,1769657432771,-1297.60771417,0.00017857,2]
[403908018,1769657432780,-1297.60771417,0.00017871,2]
[403908019,1769657432790,-1297.60771417,0.00017886,2]
[403908020,1769657432799,-166.66,0.00017897,2]
[403908021,1769657432809,-261.12076672,0.00017898,2]
[403908022,1769657432819,-13276.55541853,0.00017899,2]
[403908023,1769657433376,-463.52990528,0.00017899,2]
[403908027,1769657438852,-96800.92160143,0.00017899,2]
[403908028,1769657438863,-223.33261478,0.000179,2]
[403908029,1769657438873,-171.99873802,0.000179,3]
[403908030,1769657438882,-1297.60771417,0.000179,2]
[403908031,1769657438894,-200.23534898,0.00017937,2]
[403908032,1769657438904,-175.0,0.00017963,2]
[403908033,1769657438915,-480.0,0.00017982,2]
[403908034,1769657438924,-165.41,0.0001799,2]
[403908035,1769657438934,-241.78354925,0.0001799,2]
[403908036,1769657438944,-500.0,0.00017999,2]
[403908037,1769657438954,-500.0,0.00017999,3]
[403908038,1769657438964,-638.74202367,0.00017999,4]
[403908039,1769657438975,-28233.86059327,0.00017999,2]
[403908040,1769657438986,-300.0,0.00017999,2]
[403908041,1769657438996,-150.0,0.00017999,2]
[403908042,1769657439006,-682167.63917125,0.00018,2]
[403908043,1769657439018,-9032.55709336,0.00018,2]
[403908051,1769657442050,-500.0,0.00017837,2]
[403908052,1769657442059,-486.43771448,0.00017837,2]
[403908053,1769657442071,-13.56228552,0.00017837,2]
[403908054,1769657442080,-500.0,0.00017837,2]
[403908055,1769657442090,-500.0,0.00017837,2]
[403908056,1769657442098,-500.0,0.00017837,2]
[403908057,1769657442107,-63.01956966,0.00017837,2]
[403908058,1769657442119,-413.23085975,0.00017837,2]
[403908059,1769657442128,-86.76914025,0.00018,2]
[403908060,1769657442151,-5291757.55013143,0.00018,2]
[403908061,1769657442203,-8803.48518462,0.00018,2]
[403908062,1769657442215,-636.88586202,0.00018,2]
[403908072,1769657443320,-489.29525831,0.00018,2]
[403908073,1769657443349,-440.5395728,0.000179,2]
[403908084,1769657444163,-22846.87,0.000179,2]
[403908087,1769657446659,-1000.0,0.00017799,2]